bitfinex-derivatives/quotes_SOLF0:USTF0_20250221
["timestamp","ask_amount","ask_price","bid_price","bid_amount"]
[1740147197879,15.17143767,179.08,179.04,5.5835]
[1740147198177,15.17143767,179.08,179.02,0.03778278]
[1740147198975,20.75373767,179.08,179.04,5.5835]
[1740147201186,15.17143767,179.08,179.02,0.03778278]
[1740147201379,15.17143767,179.05,179.02,0.03778278]
[1740147201778,5.5838,179.03,179.02,0.03778278]
[1740147202174,15.17143767,179.05,178.95,1.7763]
[1740147202175,5.585,179.0,178.96,5.5859]
[1740147202475,15.17143767,179.0,178.92,3.4785]
[1740147202891,5.5851,178.99,178.95,5.5863]
[1740147203081,15.17143767,179.0,178.92,3.4785]
[1740147203383,0.03625318,178.99,178.95,0.04089393]
[1740147204976,0.03625318,178.99,178.98,5.5854]
[1740147205181,15.17143767,179.03,178.95,55.92089393]
[1740147205381,15.17143767,179.03,178.95,0.04089393]
[1740147205985,5.5842,179.02,178.97,5.5856]
[1740147206383,15.17143767,179.03,178.95,0.04089393]
[1740147206579,20.75533767,179.03,178.95,0.04089393]
[1740147206987,15.17143767,179.03,178.95,0.04089393]
[1740147207188,5.5849,179.0,178.96,5.586]
[1740147207583,15.17143767,179.0,178.95,5.62719393]
[1740147207784,15.17143767,179.0,178.95,0.04089393]
[1740147208691,15.17143767,179.0,178.95,5.62719393]
[1740147209490,20.75633767,179.0,178.96,5.586]
[1740147209890,5.5851,178.99,178.95,0.04089393]
[1740147210090,15.17143767,179.0,178.95,5.62699393]
[1740147210992,15.17143767,179.0,178.96,5.5859]
[1740147211393,15.17143767,179.0,178.95,0.04089393]
[1740147212392,15.17143767,179.0,178.97,5.5857]
[1740147213294,5.5842,179.02,178.95,0.04089393]
[1740147213589,15.17143767,179.03,178.92,3.4785]
[1740147213794,5.5842,179.02,178.97,0.03684417]
[1740147213997,15.17143767,179.03,178.97,0.03684417]
[1740147215092,20.75533767,179.03,178.99,5.5848]
[1740147215988,20.75533767,179.03,178.97,0.03684417]
[1740147215989,15.17143767,179.03,178.97,0.03684417]
[1740147216596,193.0,179.07,178.97,0.03684417]
[1740147216789,15.17143767,179.08,178.97,0.03684417]
[1740147216987,15.17143767,179.08,178.94,15.17143767]
[1740147217199,15.17143767,179.08,179.01,0.03801736]
[1740147217696,5.5829,179.06,179.01,0.03801736]
[1740147217896,15.17143767,179.08,179.01,0.03801736]
[1740147218291,15.17143767,179.08,179.05,5.583]
[1740147218589,15.17143767,179.08,179.02,1.7659]
[1740147218787,15.17143767,179.08,179.05,0.03602086]
[1740147218988,20.75373767,179.08,179.05,0.03602086]
[1740147219993,15.17143767,179.08,179.05,5.61902086]
[1740147220402,15.17143767,179.08,179.05,0.03602086]
[1740147220595,15.17143767,179.08,179.07,5.5826]
[1740147220997,15.17143767,179.14,179.05,0.03602086]
[1740147221200,15.17143767,179.14,179.02,1.7659]
[1740147221389,15.17143767,179.14,179.08,0.04228742]
[1740147221994,7.819,179.21,179.08,0.04228742]
[1740147221995,20.75113767,179.17,179.08,0.04228742]
[1740147222195,20.75113767,179.17,179.03,15.17143767]
[1740147222499,20.75113767,179.17,179.12,5.5808]
[1740147222999,15.17143767,179.17,179.11,0.03673354]
[1740147223498,20.75113767,179.17,179.12,5.581]
[1740147224100,20.75113767,179.17,179.11,5.61793354]
[1740147224394,5.5798,179.16,179.11,5.61793354]
[1740147224599,15.17143767,179.17,179.11,0.03673354]
[1740147224799,15.17143767,179.14,179.11,0.03673354]
[1740147224996,20.75203767,179.14,179.11,0.03673354]
[1740147225197,15.17143767,179.14,179.11,0.03673354]
[1740147225894,5.5809,179.13,179.11,0.03673354]
[1740147226499,5.581,179.12,179.11,0.03673354]
[1740147226904,15.17143767,179.14,179.11,0.03673354]
[1740147227498,5.5807,179.13,179.11,0.03673354]
[1740147228002,15.17143767,179.14,179.11,0.03673354]
[1740147228197,5.581,179.12,179.11,0.03673354]
[1740147228403,15.17143767,179.14,179.02,1.7659]
[1740147228599,20.75333767,179.1,179.02,1.7659]
[1740147228900,15.17143767,179.1,179.02,1.7659]
[1740147229608,0.03735124,179.08,179.04,0.03605189]
[1740147231202,5.61965124,179.08,179.04,5.61925189]
[1740147231695,0.03735124,179.08,179.04,0.03605189]
[1740147232803,0.03735124,179.08,179.05,5.5829]
[1740147233203,0.03735124,179.08,179.04,0.03605189]
[1740147234300,5.5828,179.07,179.04,0.03605189]
[1740147234501,0.03735124,179.08,179.04,0.03605189]
[1740147234898,5.5832,179.05,179.04,0.03605189]
[1740147235099,0.03735124,179.08,179.04,0.03605189]
[1740147236209,5.5826,179.07,179.04,0.03605189]
[1740147237711,0.03735124,179.08,179.04,0.03605189]
[1740147238403,5.5828,179.07,179.04,0.03605189]
[1740147239708,0.03735124,179.08,179.04,0.03605189]
[1740147239908,5.5826,179.07,179.04,0.03605189]
[1740147241104,5.5826,179.07,179.04,5.61955189]
[1740147242405,5.61985124,179.08,179.04,5.61955189]
[1740147242604,0.03735124,179.08,179.04,5.61955189]
[1740147243007,15.17143767,179.07,179.04,0.03605189]
[1740147243509,5.5832,179.05,179.04,0.03605189]
[1740147244408,15.17143767,179.07,178.95,1.7219]
[1740147244611,20.75543767,179.03,178.95,1.7219]
[1740147245011,15.17143767,179.03,178.95,1.7219]
[1740147245213,5.5845,179.01,178.95,1.7219]
[1740147245423,15.17143767,179.0,178.95,1.7219]
[1740147245711,15.21063321,179.0,178.96,5.62385366]
[1740147246012,15.21063321,179.0,178.96,0.03795366]
[1740147246213,5.5853,178.99,178.96,0.03795366]
[1740147247107,15.21063321,179.0,178.96,0.03795366]
[1740147248514,15.21063321,179.0,178.97,5.5855]
[1740147249717,15.21063321,179.0,178.96,5.62385366]
[1740147250011,15.21063321,179.0,178.98,5.5853]
[1740147250214,0.03919554,179.0,178.96,0.03795366]
[1740147250613,0.03919554,179.0,178.99,5.5851]
[1740147251115,15.17143767,179.06,179.03,5.5837]
[1740147251506,15.17143767,179.06,178.97,1.694]
[1740147251710,15.17143767,179.1,179.0,15.17143767]
[1740147251913,15.17143767,179.13,179.0,15.17143767]
[1740147252113,0.03511949,179.07,179.03,0.03527978]
[1740147252315,0.03511949,179.07,179.06,5.5829]
[1740147252714,0.03511949,179.07,179.05,5.5831]
[1740147253115,0.03511949,179.07,179.03,0.03527978]
[1740147253316,0.03511949,179.07,179.06,5.5829]
[1740147253912,1.949e-05,179.07,179.06,5.5829]
[1740147254416,1.949e-05,179.07,179.06,61.4329]
[1740147256315,1.949e-05,179.07,179.06,5.5829]
[1740147256720,1.949e-05,179.07,179.05,3.4366]
[1740147257018,1.949e-05,179.07,179.03,0.03527978]
[1740147258018,1.949e-05,179.07,179.04,5.5834]
[1740147258722,1.949e-05,179.07,179.03,5.61897978]
[1740147259117,5.583,179.06,179.03,0.03527978]
[1740147259319,15.17145716,179.07,179.03,0.03527978]
[1740147260024,15.17143767,179.04,179.03,0.03527978]
[1740147260218,20.75493767,179.04,179.03,0.03527978]
[1740147260720,5.5842,179.02,178.97,1.7874]
[1740147261224,5.5839,179.03,179.0,5.5847]
[1740147261420,15.17143767,179.04,179.0,5.5847]
[1740147261722,15.20673694,179.04,179.0,5.62313272]
[1740147262024,20.79043694,179.04,179.0,5.62313272]
[1740147262420,15.20673694,179.04,179.0,5.62313272]
[1740147262925,20.79033694,179.04,179.0,5.62313272]
[1740147263421,15.20673694,179.04,179.0,0.03843272]
[1740147263627,5.5839,179.03,179.0,0.03843272]
[1740147264023,15.20673694,179.04,179.0,0.03843272]
[1740147265822,5.584,179.03,179.0,5.62313272]
[1740147266029,15.20673694,179.04,179.0,0.03843272]
[1740147266728,15.17143767,179.01,179.0,0.03843272]
[1740147266925,5.5854,178.98,178.95,5.5862]
[1740147267229,20.75683767,178.98,178.95,5.5862]
[1740147267428,15.17143767,178.98,178.95,5.5862]
[1740147267824,15.17143767,178.98,178.9,3.5169]
[1740147268031,15.20990023,178.98,178.95,0.03826783]
[1740147268730,5.586,178.96,178.95,0.03826783]
[1740147269231,15.20990023,178.98,178.95,0.03826783]
[1740147269432,5.5857,178.97,178.95,0.03826783]
[1740147270732,61.466,178.96,178.93,5.5867]
[1740147270923,15.17143767,178.94,178.84,3.3915]
[1740147271128,15.17143767,178.91,178.84,3.3915]
[1740147271531,15.17143767,178.91,178.89,5.588]
[1740147272030,15.17143767,178.91,178.9,5.5879]
[1740147272929,0.04235519,178.92,178.91,5.5876]
[1740147275635,0.04235519,178.92,178.9,5.5877]
[1740147276829,0.04235519,178.92,178.88,0.04258527]
[1740147277429,0.04235519,178.92,178.9,5.5877]
[1740147277820,0.04235519,178.92,178.88,0.04258527]
[1740147278026,15.17143767,178.91,178.88,0.04258527]
[1740147278229,5.5882,178.89,178.88,0.04258527]
[1740147279233,5.588,178.9,178.88,0.04258527]
[1740147279629,15.17143767,178.91,178.88,0.04258527]
[1740147279932,20.75923767,178.91,178.88,5.63108527]
[1740147280133,20.75923767,178.91,178.88,0.04258527]
[1740147281333,20.75923767,178.91,178.88,5.63098527]
[1740147282034,15.17143767,178.91,178.88,0.04258527]
[1740147283537,15.17143767,178.91,178.9,5.5879]
[1740147283936,0.04235519,178.92,178.91,5.5876]
[1740147288442,0.04235519,178.92,178.88,0.04258527]
[1740147289342,0.04235519,178.92,178.91,5.5876]
[1740147293340,0.04235519,178.92,178.9,5.5878]
[1740147294641,0.04235519,178.92,178.88,0.04258527]
[1740147294846,0.04235519,178.92,178.91,5.5876]
[1740147295843,0.04235519,178.92,178.88,0.04258527]
[1740147296147,0.04235519,178.92,178.9,5.5878]
[1740147296347,0.04235519,178.92,178.88,0.04258527]
[1740147297757,5.5878,178.91,178.88,5.63098527]
[1740147298551,9.72078689,178.9,178.88,5.63098527]
[1740147298751,9.72078689,178.9,178.88,0.04258527]
[1740147299354,9.72078689,178.91,178.9,5.5878]
[1740147299550,9.72078689,178.91,178.88,0.04258527]
[1740147299748,0.04235519,178.92,178.91,5.5876]
[1740147300048,9.76314208,178.92,178.88,0.04258527]
[1740147300254,9.76314208,178.92,178.9,5.5878]
[1740147301756,9.76314208,178.92,178.91,5.5876]
[1740147302457,9.76314208,178.92,178.88,0.04258527]
[1740147302657,9.72078689,178.9,178.88,0.04258527]
[1740147302956,9.72078689,178.9,178.89,5.5882]
[1740147303158,9.76314208,178.92,178.88,0.04258527]
[1740147303453,9.76314208,178.92,178.9,5.5878]
[1740147303651,9.76314208,178.92,178.88,0.04258527]
[1740147303852,9.72078689,178.9,178.88,0.04258527]
[1740147304052,9.72078689,178.9,178.88,5.63098527]
[1740147304247,9.72078689,178.9,178.88,0.04258527]
[1740147305054,9.72078689,178.9,178.88,5.63098527]
[1740147306058,9.72078689,178.9,178.89,5.5882]
[1740147306358,9.76314208,178.92,178.88,0.04258527]
[1740147307559,9.72078689,178.9,178.88,0.04258527]
[1740147308659,65.62078689,178.9,178.81,30.87556466]
[1740147308854,9.72078689,178.83,178.81,30.87556466]
[1740147310364,9.72078689,178.83,178.81,36.46606466]
[1740147310560,9.72078689,178.83,178.81,30.87556466]
[1740147311564,9.72078689,178.83,178.8,0.03706227]
[1740147311765,9.72078689,178.81,178.8,0.03706227]
[1740147312564,9.72078689,178.81,178.8,5.62806227]
[1740147313163,9.72078689,178.81,178.8,0.03706227]
[1740147313665,9.72078689,178.81,178.8,5.62806227]
[1740147315259,9.72078689,178.81,178.8,0.03706227]
[1740147316461,9.72078689,178.81,178.73,3.6211]
[1740147316665,9.72078689,178.76,178.73,3.6211]
[1740147316867,9.72078689,178.76,178.75,5.5926]
[1740147318962,9.72078689,178.76,178.74,0.04008778]
[1740147320765,5.5926,178.75,178.74,0.04008778]
[1740147321167,9.72078689,178.76,178.74,0.04008778]
[1740147322164,9.72078689,178.76,178.74,5.63268778]
[1740147322560,9.72078689,178.76,178.75,5.5926]
[1740147324858,9.72078689,178.76,178.74,0.04008778]
[1740147325064,9.72078689,178.76,178.74,5.63278778]
[1740147326071,5.63205733,178.77,178.74,5.63278778]
[1740147326366,9.72078689,178.75,178.74,5.63278778]
[1740147326760,15.31338689,178.75,178.74,0.04008778]
[1740147328261,9.72078689,178.75,178.74,0.04008778]
[1740147329370,15.31338689,178.75,178.74,0.04008778]
[1740147330170,9.72078689,178.75,178.74,0.04008778]
[1740147330668,9.72078689,178.75,178.74,5.63298778]
[1740147330870,9.72078689,178.75,178.74,0.04008778]
[1740147331266,9.72078689,178.75,178.74,5.63298778]
[1740147332170,9.72078689,178.75,178.74,0.04008778]
[1740147332664,9.72078689,178.75,178.74,5.63298778]
[1740147333872,9.72078689,178.75,178.74,0.04008778]
[1740147334983,15.31338689,178.75,178.74,0.04008778]
[1740147336676,9.72078689,178.75,178.74,0.04008778]
[1740147338476,9.72078689,178.75,178.74,5.63298778]
[1740147339977,0.04005733,178.77,178.76,5.5923]
[1740147341979,9.72078689,178.79,178.75,1.8055]
[1740147342180,9.72078689,178.79,178.78,5.5916]
[1740147343079,9.72078689,178.81,178.76,9.72078689]
[1740147343279,6.47e-06,178.8,178.78,9.72078689]
[1740147343482,9.72078689,178.83,178.82,5.5904]
[1740147345780,0.03729016,178.84,178.81,0.04108437]
[1740147346084,11.51126982,178.95,178.86,5.5891]
[1740147346287,9.72078689,178.89,178.82,9.72078689]
[1740147347181,0.04059115,178.87,178.86,5.5891]
[1740147347488,9.72078689,178.92,178.86,9.72078689]
[1740147347681,9.72078689,178.94,178.88,9.72078689]
[1740147348083,9.72078689,178.94,178.87,1.7741]
[1740147348286,9.72078689,178.94,178.88,9.72078689]
[1740147348486,0.03660871,178.92,178.89,0.03575843]
[1740147348786,0.03660871,178.92,178.91,5.5876]
[1740147350793,0.03660871,178.92,178.9,5.5878]
[1740147351091,0.03660871,178.92,178.89,0.03575843]
[1740147351289,0.03660871,178.92,178.89,5.62365843]
[1740147351691,0.03660871,178.92,178.89,0.03575843]
[1740147353996,0.03660871,178.92,178.9,5.5879]
[1740147354894,0.03660871,178.92,178.89,0.03575843]
[1740147356296,0.03660871,178.92,178.91,5.5876]
[1740147356697,0.03660871,178.92,178.89,0.03575843]
[1740147356893,0.03660871,178.92,178.9,5.5878]
[1740147357094,0.03660871,178.92,178.89,0.03575843]
[1740147357500,0.03660871,178.92,178.9,5.5879]
[1740147358294,0.03660871,178.92,178.89,5.62385843]
[1740147359400,0.03660871,178.92,178.89,0.03575843]
[1740147360190,0.03660871,178.92,178.89,5.62385843]
[1740147360399,0.03660871,178.92,178.89,0.03575843]
[1740147360898,0.03660871,178.92,178.91,5.5876]
[1740147362093,163.0624,179.13,178.9,9.72078689]
[1740147362293,9.72078689,179.0,178.93,9.72078689]
[1740147362798,9.72078689,178.96,178.91,9.72078689]
[1740147363200,9.72078689,178.94,178.92,0.04150669]
[1740147363598,9.72078689,178.94,178.89,9.72078689]
[1740147363902,9.72078689,178.94,178.91,0.03677194]
[1740147364100,9.72078689,178.96,178.91,0.03677194]
[1740147364294,9.72078689,178.98,178.91,9.72078689]
[1740147364502,9.72078689,179.0,178.93,9.72078689]
[1740147364700,9.72078689,179.0,178.94,1.7704]
[1740147364906,9.72078689,179.0,178.95,0.04065539]
[1740147365098,9.72078689,179.0,178.95,9.76144228]
[1740147365299,9.72078689,179.02,178.97,9.72078689]
[1740147365498,9.72078689,179.02,179.0,5.5847]
[1740147366702,5.5839,179.03,179.0,5.5847]
[1740147366903,15.16682784,179.05,178.98,0.03982376]
[1740147367109,5.5836,179.04,178.98,0.03982376]
[1740147367502,15.16682784,179.05,178.98,0.03982376]
[1740147367698,15.16682784,179.02,178.98,0.03982376]
[1740147367902,15.16682784,179.02,178.95,1.7907]
[1740147368105,15.16682784,179.02,178.97,0.03894421]
[1740147368504,5.585,179.0,178.97,0.03894421]
[1740147368809,15.16682784,179.02,178.97,0.03894421]
[1740147369006,15.16682784,178.99,178.97,0.03894421]
[1740147369207,71.03682784,178.99,178.89,1.6844]
[1740147369402,15.16682784,178.96,178.89,1.6844]
[1740147369704,20.75292784,178.96,178.92,5.5872]
[1740147369906,15.16682784,178.96,178.91,0.03926478]
[1740147370306,15.16682784,178.96,178.93,5.5869]
[1740147370505,15.16682784,178.96,178.91,0.03926478]
[1740147370904,20.75282784,178.96,178.92,5.5872]
[1740147371807,20.75282784,178.96,178.91,0.03926478]
[1740147372008,15.16682784,178.96,178.91,0.03926478]
[1740147372405,15.16682784,178.99,178.91,0.03926478]
[1740147373110,20.75192784,178.99,178.91,0.03926478]
[1740147373513,15.16682784,178.99,178.93,5.5869]
[1740147373703,15.16682784,178.99,178.91,0.03926478]
[1740147373912,15.16682784,179.01,178.91,0.03926478]
[1740147374202,1.8324,179.12,178.97,15.16682784]
[1740147374606,1.8324,179.12,179.03,5.5836]
[1740147374812,1.8324,179.12,179.02,0.0400651]
[1740147375112,1.8324,179.12,179.03,5.5837]
[1740147375406,20.74852784,179.1,179.02,0.0400651]
[1740147375607,20.74852784,179.1,179.04,5.5833]
[1740147376610,15.16682784,179.1,179.02,0.0400651]
[1740147376814,15.16682784,179.1,179.06,5.5829]
[1740147377210,15.16682784,179.1,179.06,5.61844216]
[1740147377917,15.16682784,179.13,179.06,0.03554216]
[1740147378312,5.5805,179.14,179.08,5.582]
[1740147378512,20.74732784,179.14,179.08,5.582]
[1740147379010,15.16682784,179.14,179.08,5.582]
[1740147379215,5.5813,179.11,179.06,5.61814216]
[1740147379411,15.16682784,179.14,179.06,0.03554216]
[1740147381115,5.5812,179.12,179.07,5.5823]
[1740147381521,5.5812,179.12,179.06,0.03554216]
[1740147381821,5.5814,179.11,179.07,5.5825]
[1740147382512,5.5814,179.11,179.08,5.5822]
[1740147382918,15.16682784,179.14,179.06,0.03554216]
[1740147383218,15.16682784,179.14,179.11,5.5812]
[1740147383416,16.85402784,179.17,179.11,5.5812]
[1740147383719,16.85402784,179.17,179.12,0.03876375]
[1740147383916,5.5802,179.15,179.12,0.03876375]
[1740147384118,15.16682784,179.17,179.13,5.5805]
[1740147384311,20.74652784,179.17,179.13,5.5805]
[1740147384511,15.16682784,179.17,179.12,0.03876375]
[1740147385114,15.16682784,179.14,179.12,0.03876375]
[1740147386116,5.5807,179.13,179.12,0.03876375]
[1740147386919,5.5816,179.11,179.07,5.5824]
[1740147387114,15.16682784,179.11,179.07,5.5824]
[1740147387321,15.16682784,179.11,179.02,1.7617]
[1740147387521,20.74822784,179.11,179.08,5.5822]
[1740147388015,20.74822784,179.11,179.08,5.62111768]
[1740147388225,20.7869916,179.11,179.08,5.62111768]
[1740147388724,20.7869916,179.11,179.08,0.03891768]
[1740147388926,15.2055916,179.11,179.08,0.03891768]
[1740147389425,20.7871916,179.11,179.08,0.03891768]
[1740147389620,15.2055916,179.11,179.08,0.03891768]
[1740147390427,20.7870916,179.11,179.08,5.62111768]
[1740147390829,15.2055916,179.11,179.08,5.62111768]
[1740147391222,15.2055916,179.11,179.09,5.5819]
[1740147392130,15.2055916,179.11,179.08,5.62101768]
[1740147392430,20.7869916,179.11,179.08,5.62101768]
[1740147393833,20.7869916,179.11,179.08,0.03891768]
[1740147393834,5.5818,179.1,179.08,0.03891768]
[1740147394130,15.2055916,179.11,179.08,0.03891768]
[1740147394334,5.5816,179.1,179.08,0.03891768]
[1740147394524,15.2055916,179.11,179.08,0.03891768]
[1740147394927,5.5819,179.09,179.08,0.03891768]
[1740147395930,5.5829,179.06,178.97,35.773319]
[1740147396123,15.16682784,179.08,178.97,26.331819]
[1740147396322,15.16682784,179.08,179.02,5.5839]
[1740147396522,5.583,179.06,178.97,26.331819]
[1740147396731,15.16682784,179.08,178.97,26.331819]
[1740147397029,0.03641424,179.04,179.01,0.03567103]
[1740147398528,0.03641424,179.04,179.03,5.5838]
[1740147400127,15.16682784,179.11,179.03,55.86]
[1740147400430,20.74832784,179.11,179.0,15.16682784]
[1740147401127,5.581,179.12,179.0,15.16682784]
[1740147401326,0.04000074,179.07,179.04,0.0411556]
[1740147401534,15.16682784,179.14,179.04,0.0411556]
[1740147401731,0.03685829,179.07,179.04,0.0411556]
[1740147402030,0.04126719,179.07,179.04,0.0411556]
[1740147402237,15.16682784,179.14,179.11,5.5813]
[1740147402534,1.7548,179.17,179.06,15.16682784]
[1740147402535,16.92162784,179.17,179.06,15.16682784]
[1740147403437,16.92162784,179.17,179.1,5.62403727]
[1740147403838,16.92162784,179.17,179.1,0.04243727]
[1740147404032,5.5801,179.15,179.11,5.5813]
[1740147405237,15.16682784,179.17,179.1,0.04243727]
[1740147406026,15.16682784,179.17,179.14,5.5803]
[1740147406232,18.65162784,179.23,179.12,15.16682784]
[1740147406434,15.16682784,179.23,179.14,0.03930034]
[1740147406628,15.16682784,179.23,179.2,5.5785]
[1740147406833,15.16682784,179.23,179.13,3.5956]
[1740147406834,20.74452784,179.23,179.13,3.5956]
[1740147407137,15.16682784,179.23,179.2,0.03595641]
[1740147407338,15.16682784,179.23,179.13,3.5956]
[1740147407938,15.16682784,179.23,179.16,0.04106174]
[1740147408137,20.74452784,179.23,179.18,5.5791]
[1740147408339,15.16682784,179.23,179.18,5.5791]
[1740147408741,5.5779,179.22,179.17,5.5794]
[1740147409039,15.16682784,179.23,179.16,0.04106174]
[1740147409338,5.5782,179.21,179.16,5.62056174]
[1740147409536,15.16682784,179.23,179.16,0.04106174]
[1740147409942,5.5781,179.22,179.17,5.5794]
[1740147410339,15.16682784,179.23,179.16,0.04106174]
[1740147410943,5.5781,179.22,179.17,5.5794]
[1740147411142,15.16682784,179.23,179.16,0.04106174]
[1740147411333,15.16682784,179.26,179.16,0.04106174]
[1740147411642,15.16682784,179.26,179.14,1.809]
[1740147411844,15.16682784,179.26,179.19,0.0395341]
[1740147412438,5.5784,179.21,179.19,0.0395341]
[1740147413642,5.5785,179.2,179.19,0.0395341]
[1740147420348,5.5781,179.22,179.19,0.0395341]
[1740147420546,15.16682784,179.26,179.19,0.0395341]
[1740147420750,15.16682784,179.23,179.19,0.0395341]
[1740147421148,5.5785,179.2,179.19,0.0395341]
[1740147421350,15.16682784,179.23,179.19,0.0395341]
[1740147421738,5.578,179.22,179.19,0.0395341]
[1740147421938,11.56416672,179.27,179.19,0.0395341]
[1740147421939,15.16682784,179.26,179.19,0.0395341]
[1740147422141,11.56416672,179.27,179.19,0.0395341]
[1740147422142,5.5775,179.24,179.19,0.0395341]
[1740147422343,15.16682784,179.26,179.19,0.0395341]
[1740147423547,15.16682784,179.26,179.2,5.5785]
[1740147424050,15.16682784,179.26,179.19,0.0395341]
[1740147425249,15.16682784,179.26,179.22,5.5778]
[1740147425445,15.16682784,179.29,179.22,5.5778]
[1740147425649,15.16682784,179.29,179.18,1.8349]
[1740147425849,5.5767,179.26,179.23,5.5774]
[1740147426051,1.7819,179.3,179.22,0.03633799]
[1740147426249,5.5759,179.29,179.22,0.03633799]
[1740147426447,15.16682784,179.32,179.22,0.03633799]
[1740147426950,5.576,179.29,179.26,5.5766]
[1740147427448,15.16682784,179.32,179.26,0.04047903]
[1740147427651,18.79622784,179.35,179.26,0.04047903]
[1740147428760,5.5744,179.34,179.28,5.576]
[1740147428948,5.5744,179.34,179.26,0.04047903]
[1740147429150,15.16682784,179.35,179.22,15.16682784]
[1740147429456,15.16682784,179.38,179.28,0.04058566]
[1740147429750,15.16682784,179.38,179.25,15.16682784]
[1740147429751,15.16682784,179.38,179.26,3.5169]
[1740147430048,15.16682784,179.41,179.31,0.03736955]
[1740147430250,15.16682784,179.32,179.14,0.78455868]
[1740147430554,15.16682784,179.29,179.2,5.5782]
[1740147430855,15.16682784,179.29,179.15,20.46322784]
[1740147431154,5.5769,179.26,179.19,5.5786]
[1740147431352,15.16682784,179.29,179.21,0.0405196]
[1740147431544,3.5567,179.31,179.21,0.0405196]
[1740147431545,5.5779,179.22,179.21,0.0405196]
[1740147431744,20.74472784,179.22,179.21,0.0405196]
[1740147434249,5.5779,179.22,179.21,0.0405196]
[1740147436358,0.03736956,179.23,179.21,0.0405196]
[1740147436559,5.61496956,179.23,179.21,0.0405196]
[1740147436754,0.03736956,179.23,179.21,0.0405196]
[1740147437060,5.5779,179.22,179.21,0.0405196]
[1740147437559,15.16682784,179.22,179.11,1.7199]
[1740147437754,22.66682784,179.28,179.11,1.7199]
[1740147437755,15.16682784,179.19,179.11,1.7199]
[1740147437958,15.16682784,179.16,179.1,1.6914]
[1740147438156,5.5805,179.14,179.07,30.87556466]
[1740147438553,15.16682784,179.16,179.07,30.87556466]
[1740147438760,0.04095457,179.12,179.09,0.03747571]
[1740147438955,15.16682784,179.19,179.07,30.87556466]
[1740147439157,15.16682784,179.19,179.09,0.03771813]
[1740147439158,0.04121428,179.12,179.09,0.03771813]
[1740147439457,15.16682784,179.19,179.09,0.03771813]
[1740147439662,0.03774714,179.12,179.09,0.03771813]
[1740147439959,0.03792586,179.12,179.09,0.03771813]
[1740147440157,0.03792586,179.12,179.1,55.83]
[1740147440351,0.03792586,179.12,179.11,55.83]
[1740147440555,0.03792586,179.12,179.11,5.5813]
[1740147440757,0.03792586,179.12,179.11,61.4113]
[1740147441463,2.586e-05,179.12,179.11,61.4113]
[1740147442261,2.586e-05,179.12,179.11,55.83]
[1740147442454,2.586e-05,179.12,179.09,0.03771813]
[1740147442763,5.58102586,179.12,179.09,0.03771813]
[1740147443161,2.586e-05,179.12,179.09,0.03771813]
[1740147444361,2.586e-05,179.12,179.11,5.5813]
[1740147444754,2.586e-05,179.12,179.09,0.03771813]
[1740147446159,15.16682784,179.1,179.09,0.03771813]
[1740147447260,15.16682784,179.1,179.0,149.4914]
[1740147447461,15.16682784,179.07,179.0,3.4314]
[1740147447662,15.16682784,179.07,178.99,81.28973365]
[1740147447965,5.5831,179.06,178.99,79.58723365]
[1740147448166,15.16682784,179.07,178.99,71.86834249]
[1740147448370,15.16682784,179.07,179.04,5.5833]
[1740147448666,0.03906623,179.05,179.04,5.5833]
[1740147450170,0.03906623,179.05,179.02,5.5839]
[1740147450365,15.16682784,179.04,179.01,0.04184003]
[1740147451372,15.16682784,179.04,179.03,5.5838]
[1740147452176,15.16682784,179.04,179.02,5.5841]
[1740147452373,15.16682784,179.04,179.01,0.04184003]
[1740147452869,0.03906623,179.05,179.04,5.5835]
[1740147453070,0.03906623,179.05,179.01,0.04184003]
[1740147454268,0.03906623,179.05,179.02,5.5841]
[1740147454467,15.16682784,179.04,179.01,0.04184003]
[1740147454870,0.03906623,179.05,179.04,5.5835]
[1740147459876,0.03906623,179.05,179.01,0.04184003]
[1740147460177,0.03906623,179.05,179.02,5.5839]
[1740147461075,5.62246623,179.05,179.02,5.5839]
[1740147461278,0.03906623,179.05,179.01,0.04184003]
[1740147461481,15.16682784,179.04,179.01,0.04184003]
[1740147462180,5.5841,179.02,179.01,0.04184003]
[1740147464177,61.4441,179.02,179.01,0.04184003]
[1740147464382,5.5841,179.02,179.01,0.04184003]
[1740147464578,61.4441,179.02,179.01,0.04184003]
[1740147464779,5.5852,178.99,178.96,5.5858]
[1740147465174,15.16682784,179.0,178.93,8.73069]
[1740147465372,20.75162784,179.0,178.96,5.5857]
[1740147465580,15.16682784,179.0,178.96,5.5857]
[1740147465984,20.78889317,179.0,178.96,5.62768373]
[1740147466185,15.20399317,179.0,178.96,5.62768373]
[1740147466379,15.20399317,179.0,178.96,0.04198373]
[1740147466777,5.5853,178.99,178.96,0.04198373]
[1740147468183,20.78899317,179.0,178.97,5.5855]